Workbook

Sheet 401K Planner
B3: 401K Planner
B4: Your Name
B5: =NOW() -> 2010-04-21T08:57:15.680
C7: Assumptions
C8: 401K Contribution per paycheck | I8: $100
C9: 401K Employer contribution match per paycheck | I9: $25
C10: Paychecks per year (12, 24, 26, and 52) | I10: 52
C11: Expected annual rate of return | I11: 10%
C12: Age as of the end of this tax year | I12: 30
C13: Anticipated retirement age | I13: 65
C14: Current value of 401K | I14: $5,000
C15: Date (the "as of" date for the current value) | I15: 2006-09-01
C16: Enter the date of the year end | I16: 2006-12-31
C17: Marginal Tax Rate (Federal plus State) | I17: 40%
C19: Tax Deferred 401K Plan Growth | G19: Taxable Savings Plan Growth
C20: Age | E20: Estimated 401K Value | G20: Age | I20: Estimated Savings Value
C21: =+C54 -> 30 | E21: =IF(SUM(C21),+I14*(1+I11*(I16-I15)/(340+25))+FV(I11/((340+25)/C49),C52,-SUM(I8:I9)),"") -> $7,361 | G21: =C21 -> 30 | I21: =IF(SUM(G21),+I14*(1+(I11*(1-I17))*(I16-I15)/(340+25))+FV((I11*(1-I17))/((340+25)/C49),C52,-SUM(I8:I9)),"") -> $7,281
C22: =+C55 -> 35 | E22: =IF(SUM(C22),((E21*((1+I11)^(C22-C21))+FV((I11/(I10)),(C22-C21)*I10,-(I8+I9)))),"") -> $53,970 | G22: =C22 -> 35 | I22: =IF(SUM(G22),((I21*((1+(I11*(1-I17)))^(C22-C21))+FV(((I11*(1-I17))/(I10)),(C22-C21)*I10,-(I8+I9)))),"") -> $47,619
C23: =+C56 -> 45 | E23: =IF(SUM(C23),((E22*((1+I11)^(C23-C22))+FV((I11/(I10)),(C23-C22)*I10,-(I8+I9)))),"") -> $251,502 | G23: =C23 -> 45 | I23: =IF(SUM(G23),((I22*((1+(I11*(1-I17)))^(C23-C22))+FV(((I11*(1-I17))/(I10)),(C23-C22)*I10,-(I8+I9)))),"") -> $174,273
C24: =+C57 -> 65 | E24: =IF(SUM(C24),((E23*((1+I11)^(C24-C23))+FV((I11/(I10)),(C24-C23)*I10,-(I8+I9)))),"") -> $2,106,348 | G24: =C24 -> 65 | I24: =IF(SUM(G24),((E23*((1+(I11*(1-I17)))^(C24-C23))+FV(((I11*(1-I17))/(I10)),(C24-C23)*I10,-(I8+I9)))),"") -> $1,057,699
C26: Pre-tax retirement income | G26: Pre-tax retirement income
C27: From retirement age to 90 years old | G27: From retirement age to 90 years old
C28: Monthly income | E28: =IF(SUM(C21:C24),IF(SUM(E24),PMT($I$11/12,(90-$I$13)*12,-E24),IF(E23,PMT($I$11/12,(90-$I$13)*12,-E23),PMT($I$11/12,(90-$I$13)*12,-E22))),"") -> $19,140 | G28: Monthly income | I28: =IF(SUM(G21:G24),IF(SUM(I24),PMT($I$11/12,(90-$I$13)*12,-I24),IF(SUM(I23),PMT($I$11/12,(90-$I$13)*12,-I23),PMT($I$11/12,(90-$I$13)*12,-I22))),"") -> $9,611
C44: Days in pay period
C45: =IF(I10=52,7,"") -> 7
C46: =IF(I10=26,(340+25)/26,"") -> 
C47: =IF(I10=24,(340+25)/24,"") -> 
C48: =IF(I10=12,(340+25)/12,"") -> 
C49: =SUM(C45:C48) -> 7
C51: Compounding periods in first yr
C52: =(+I16-I15)/C49 -> 17.28571429
C54: =IF(C58<I13,C58,"") -> 30 | D54: =+I12 -> 30 | E54: =+E21 -> 7,361 | F54: =+I21 -> $7,281
C55: =IF(C59>C58,C59,"") -> 35 | D55: =I13 -> 65 | E55: =MAX(E21:E24) -> $2,106,348 | F55: =MAX(I21:I24) -> $1,057,699
C56: =IF(C60>C59,C60,"") -> 45
C57: =IF(C61>C60,C61,"") -> 65
C58: =+I12 -> 30
C59: =IF($C$58+5>I13,I13,+$C$58+5) -> 35
C60: =IF($C$59+10>I13,I13,+$C$59+10) -> 45
C61: =I13 -> 65
